fUSD/lending_fUSD_20250116
["ID","MTS","AMOUNT","RATE_DAILY","PERIOD"]
[349233734,1737057032146,-550.0,0.00027,2]
[349233735,1737057032157,-3781.876,0.00027,15]
[349233736,1737057032167,-184.466,0.00027,15]
[349233737,1737057032176,-9999.99,0.00027,2]
[349233738,1737057032187,-150.99,0.0002705,2]
[349233739,1737057032197,-156.23,0.0002705,2]
[349233740,1737057032206,-2000.0,0.00027593,2]
[349233741,1737057032217,-2916.43,0.00027594,5]
[349233742,1737057032227,-636.16,0.00027594,2]
[349233743,1737057032237,-164.04,0.00027595,2]
[349233744,1737057032248,-357.0,0.00028527,2]
[349233745,1737057032259,-600.0,0.00029,2]
[349233746,1737057032269,-1186.33,0.00030382,2]
[349233747,1737057032279,-23900.0,0.00031539,2]
[349233748,1737057032289,-186.7809657,0.00031539,30]
[349233749,1737057032299,-250.0,0.0003161,2]
[349233750,1737057032309,-2000.0,0.00031611,120]
[349233751,1737057032319,-250.0,0.00031829,2]
[349233752,1737057032329,-1500.0,0.00031966,2]
[349233753,1737057032339,-1000.0,0.00032024,2]
[349233754,1737057032349,-497.66,0.00032032,120]
[349233755,1737057032359,-314.81,0.00032232,65]
[349233756,1737057032370,-170.33,0.00032409,2]
[349233757,1737057032379,-150.0,0.00032418,2]
[349233758,1737057032388,-1186.33,0.00032645,2]
[349233759,1737057032398,-2751.0,0.00034182,120]
[349233760,1737057032408,-278.97,0.00034401,2]
[349233761,1737057032417,-2108.36,0.00034455,2]
[349233762,1737057032427,-300.34983088,0.00034478,2]
[349233763,1737057032436,-500.0,0.00034535,2]
[349233764,1737057032445,-150.0,0.00034548,10]
[349233765,1737057032455,-250.0,0.00034604,2]
[349233767,1737057032465,-150.0,0.00034795,2]
[349233769,1737057032476,-150.0,0.00034795,2]
[349233771,1737057032486,-300.0,0.00034795,2]
[349233772,1737057032495,-181.96,0.00034869,2]
[349233773,1737057032505,-1186.33,0.00034909,2]
[349233774,1737057032515,-625.97991977,0.00035118,10]
[349233775,1737057032524,-200.0,0.00035121,10]
[349233776,1737057032533,-1861.23963456,0.00035125,10]
[349233777,1737057032543,-200.0,0.00035126,30]
[349233778,1737057032552,-930.61981728,0.00035132,10]
[349233779,1737057032562,-625.97991977,0.00035134,10]
[349233780,1737057032571,-930.61981728,0.0003514,10]
[349233781,1737057032581,-941.31155699,0.00035143,10]
[349233782,1737057032591,-650.97991978,0.00035145,10]
[349233783,1737057032601,-941.31155699,0.00035147,10]
[349233784,1737057032610,-200.0,0.00035149,30]
[349233785,1737057032619,-930.61981728,0.0003515,10]
[349233786,1737057032629,-930.61981728,0.00035156,10]
[349233787,1737057032638,-1561.35207194,0.00035157,10]
[349233788,1737057032647,-16429.37265097,0.0003516,10]
[349233789,1737057032657,-16429.37265097,0.00035162,10]
[349233790,1737057032666,-941.31155699,0.00035168,10]
[349233791,1737057032675,-200.0,0.0003517,10]
[349233792,1737057032685,-941.31155699,0.00035176,10]
[349233793,1737057032694,-10048.25745317,0.00035176,10]
[349233794,1737057032718,-474.27662681,0.00035176,10]
[349233795,1737057032729,-5906.83857099,0.00035176,10]
[349233796,1737057032738,-200.0,0.00035176,10]
[349233797,1737057032748,-650.97991978,0.00035178,10]
[349233798,1737057032757,-16429.37265097,0.00035179,10]
[349233799,1737057032766,-1861.23963456,0.00035181,10]
[349233800,1737057032776,-16418.41311381,0.00035185,10]
[349233801,1737057032788,-10.95953716,0.00035185,10]
[349233802,1737057032797,-650.97991978,0.0003519,10]
[349233803,1737057032807,-625.97991977,0.00035193,10]
[349233804,1737057032817,-625.97991977,0.00035194,10]
[349233805,1737057032826,-2590.11664552,0.00035194,10]
[349233806,1737057032838,-1309.89738912,0.00035194,10]
[349233807,1737057032858,-12529.35861633,0.00035194,10]
[349233808,1737057032868,-1561.35207194,0.00035195,10]
[349233809,1737057032878,-1561.35207194,0.00035198,10]
[349233810,1737057032887,-200.0,0.00035201,10]
[349233811,1737057032897,-941.31155699,0.00035206,10]
[349233812,1737057032907,-930.61981728,0.00035208,10]
[349233813,1737057032916,-625.97991977,0.00035208,10]
[349233814,1737057032926,-930.61981728,0.0003521,10]
[349233815,1737057032936,-625.97991977,0.00035218,10]
[349233816,1737057032945,-16429.37265097,0.00035225,10]
[349233817,1737057032955,-1561.35207194,0.00035227,10]
[349233818,1737057032965,-650.97991978,0.00035232,10]
[349233819,1737057032979,-1861.23963456,0.00035235,10]
[349233820,1737057032989,-1861.23963456,0.00035239,10]
[349233821,1737057033000,-650.97991978,0.00035241,10]
[349233822,1737057033012,-625.97991977,0.00035243,10]
[349233823,1737057033022,-16429.37265097,0.00035247,10]
[349233824,1737057033033,-650.97991978,0.00035251,10]
[349233825,1737057033043,-1561.35207194,0.00035253,10]
[349233826,1737057033054,-200.0,0.00035253,10]
[349233827,1737057033064,-1561.35207194,0.00035264,10]
[349233828,1737057033075,-16429.37265097,0.00035272,10]
[349233829,1737057033085,-1861.23963456,0.00035273,10]
[349233830,1737057033095,-1561.35207194,0.00035278,10]
[349233831,1737057033105,-1100.0,0.0003528,60]
[349233832,1737057033117,-1861.23963456,0.0003528,10]
[349233833,1737057033128,-200.0,0.00035283,10]
[349233834,1737057033138,-200.0,0.00035283,30]
[349233835,1737057033148,-200.0,0.00035284,30]
[349233836,1737057033159,-200.0,0.00035288,10]
[349233837,1737057033169,-16429.37265097,0.00035291,10]
[349233838,1737057033179,-700.0,0.000353,12]
[349233839,1737057033190,-650.97991978,0.00035303,10]
[349233840,1737057033200,-16429.37265097,0.0003531,10]
[349233841,1737057033209,-1861.23963456,0.00035312,10]
[349233842,1737057033221,-200.0,0.00035316,10]
[349233843,1737057033234,-930.61981728,0.00035316,10]
[349233844,1737057033244,-16429.37265097,0.00035324,10]
[349233845,1737057033254,-200.0,0.00035328,10]
[349233846,1737057033264,-16429.37265097,0.00035331,10]
[349233847,1737057033274,-16429.37265097,0.00035331,10]
[349233848,1737057033285,-1861.23963456,0.00035335,10]
[349233849,1737057033295,-200.0,0.00035339,10]
[349233850,1737057033305,-162.56519752,0.0003534,10]
[349233851,1737057033315,-930.61981728,0.00035341,10]
[349233852,1737057033325,-650.97991978,0.00035349,10]
[349233853,1737057033335,-200.0,0.0003535,30]
[349233854,1737057033344,-200.0,0.00035358,10]
[349233855,1737057033355,-941.31155699,0.00035366,10]
[349233856,1737057033365,-625.97991977,0.00035367,10]
[349233857,1737057033376,-941.31155699,0.00035373,10]
[349233858,1737057033385,-16429.37265097,0.00035375,10]
[349233859,1737057033393,-200.0,0.00035377,30]
[349233860,1737057033403,-200.0,0.00035381,10]
[349233861,1737057033414,-200.0,0.00035382,10]
[349233862,1737057033423,-1561.35207194,0.00035389,10]
[349233863,1737057033432,-16429.37265097,0.00035389,10]
[349233864,1737057033574,-941.31155699,0.00035392,10]
[349233865,1737057033584,-200.0,0.00035397,10]
[349233866,1737057033595,-1000.0,0.000354,2]
[349233867,1737057033605,-1000.0,0.000354,2]
[349233868,1737057033615,-1000.0,0.000354,3]
[349233869,1737057033625,-1000.0,0.000354,2]
[349233870,1737057033634,-1500.0,0.000354,12]
[349233871,1737057033644,-208.61491554,0.00035407,2]
[349233872,1737057033654,-208.61491553,0.00035448,2]
[349233873,1737057033664,-14925.1089285,0.00035448,2]
[349233874,1737057033674,-3381.91642328,0.00035448,2]
[349233875,1737057033684,-219.07033116,0.00035448,7]
[349233876,1737057033693,-251.0251732,0.00035448,2]
[349233877,1737057033703,-3805.2921601,0.00035448,2]
[349233878,1737057033714,-7069.36403852,0.00035448,2]
[349233879,1737057033727,-2300.0,0.000355,12]
[349233880,1737057033737,-17284.0,0.00035507,2]
[349233881,1737057033747,-7884.0,0.00035507,2]
[349233882,1737057033757,-156.23,0.00035507,2]
[349233883,1737057033767,-284.0,0.00035528,30]
[349233884,1737057033777,-172.60710239,0.00035538,2]
[349233885,1737057033787,-172.60710239,0.00035538,2]
[349233886,1737057033797,-150.5,0.00035538,30]
[349233887,1737057033807,-2164.97550775,0.00035545,120]
[349233888,1737057033820,-2783.46972628,0.00035545,120]
[349233889,1737057033829,-580.99797357,0.00035547,2]
[349233890,1737057033841,-419.00202643,0.00035547,2]
[349233891,1737057033850,-1000.0,0.00035547,2]
[349233892,1737057033860,-995.691,0.00035547,2]
[349233893,1737057033870,-500.0,0.00035547,7]
[349233894,1737057033879,-3000.0,0.00035547,2]
[349233895,1737057033889,-666.0,0.00035547,10]
[349233896,1737057033898,-999.0,0.00035547,2]
[349233897,1737057033908,-196.69680072,0.00035548,30]
[349233898,1737057033918,-23813.11746953,0.00035548,4]
[349233899,1737057033929,-1000.09,0.00035548,4]
[349233900,1737057033945,-232462.20329028,0.00035548,4]
[349233901,1737057033978,-326.34656084,0.00035548,4]
[349233902,1737057033989,-5401.75748297,0.00035548,4]
[349233903,1737057034001,-4380.46723962,0.00035548,4]
[349233904,1737057034013,-2609.49592439,0.00035548,4]
[349233905,1737057034024,-5300.0,0.00035548,4]
[349233906,1737057034039,-15412.6,0.00035548,4]
[349233907,1737057034051,-614.74399974,0.00035548,4]
[349233908,1737057034062,-4987.28664,0.00035548,4]
[349233909,1737057034074,-317.80371034,0.00035548,4]
[349233912,1737057037851,-2123.62848612,0.00035548,4]
[349233913,1737057037862,-617.06029197,0.00035548,4]
[349233914,1737057037950,-690.69,0.00035548,4]
[349233915,1737057037961,-1001.2,0.00035548,4]
[349233916,1737057038056,-16880.33485117,0.00035548,4]
[349233917,1737057038067,-3592.07747779,0.00035548,4]
[349233918,1737057038087,-4926.63449439,0.00035548,4]
[349233919,1737057038100,-7004.27510902,0.00035548,4]
[349233920,1737057038117,-26023.34897706,0.00035548,4]
[349233921,1737057038159,-80509.25207816,0.00035548,4]
[349233922,1737057038171,-3682.06601579,0.00035548,4]
[349233923,1737057038182,-655.655,0.00035548,4]
[349233924,1737057038255,-359.46753516,0.00035548,4]
[349233925,1737057038351,-999.99,0.00035548,4]
[349233936,1737057040028,-61500.65231202,0.00035548,4]
[349233937,1737057040040,-1000.0,0.00035548,4]
[349233938,1737057040102,-608.11212382,0.00035548,4]
[349233939,1737057040114,-3674.76568076,0.00035548,4]
[349233940,1737057040179,-670.28616396,0.00035548,4]
[349233941,1737057040190,-6492.95696655,0.00035548,4]
[349233942,1737057040201,-669.0756367,0.00035548,4]
[349233943,1737057040382,-534.0425677,0.00035548,4]
[349233944,1737057040393,-258.423501,0.00035548,4]
[349233945,1737057040466,-826.31590867,0.00035548,4]
[349233946,1737057040479,-304.166235,0.00035548,4]
[349233947,1737057040489,-755.799995,0.00035548,4]
[349233948,1737057040500,-2654.64825943,0.00035548,4]
[349233949,1737057040511,-501.85,0.00035548,4]
[349233950,1737057040522,-378.62,0.00035548,4]
[349233951,1737057040533,-329.1100001,0.00035548,4]
[349233952,1737057040560,-9917.1435832,0.00035548,4]
[349233953,1737057040571,-28328.71463249,0.00035548,4]
[349233954,1737057040582,-472.57697001,0.00035548,4]
[349233986,1737057042886,-544.12206385,0.00035548,4]
[349233987,1737057042898,-494.14,0.00035548,4]
[349233988,1737057042909,-317.25,0.00035548,4]
[349233990,1737057043103,-7506.55707404,0.00035548,4]
[349233991,1737057043118,-329.49060594,0.00035548,4]
[349233992,1737057043130,-4540.0,0.00035548,4]
[349233993,1737057043182,-3334.7875,0.00035548,4]
[349233994,1737057043195,-1179.56290355,0.00035548,4]
[349233995,1737057043207,-268020.22275699,0.00035548,4]
[349233996,1737057043217,-116293.74694559,0.00035548,30]
[349233997,1737057043230,-16694.49999995,0.00035548,30]
[349233998,1737057043241,-417.26138612,0.00035548,30]
[349234008,1737057046054,-250.0,0.00035045,2]
[349234009,1737057046065,-2232.50469129,0.00035548,30]
[349234010,1737057046076,-6050.9999995,0.00035548,30]
[349234011,1737057046088,-2094.95758528,0.00035548,30]
[349234012,1737057046099,-57022.9465228,0.00035548,30]
[349234013,1737057046111,-983.00737518,0.00035548,30]
[349234014,1737057046188,-78.34539666,0.00035548,30]
[349234015,1737057046202,-1931.00382277,0.00035548,30]
[349234016,1737057046264,-501.041784,0.00035548,30]
[349234017,1737057046275,-837.17169844,0.00035548,30]
[349234018,1737057046372,-612.94179774,0.00035548,30]
[349234019,1737057046383,-48536.00000001,0.00035548,30]
[349234451,1737057675996,1675.29587237,0.00010037,2]
[349234452,1737058026107,-150.69,0.00010137,2]
[349234453,1737058026128,-500.0,0.00010137,2]
[349234454,1737058026151,-179.05162297,0.00010137,2]
[349234455,1737058026171,-230.35,0.00012329,2]
[349234456,1737058026191,-500.0,0.00013867,2]
[349234457,1737058026212,-160.22235708,0.00018914,2]
[349234458,1737058026233,-500.0,0.00019014,2]
[349234459,1737058026253,-500.0,0.00024712,2]
[349234460,1737058026273,-225.40723957,0.00025893,2]
[349234461,1737058026294,-150.69,0.00025993,2]
[349234462,1737058026314,-151.0,0.0003,120]
[349234463,1737058026334,-398.301597,0.0003,4]
[349234464,1737058026356,-300.0,0.00031142,2]
[349234465,1737058026377,-164.0,0.00031143,2]
[349234466,1737058026403,-164.0,0.00031143,2]
[349234467,1737058026425,-164.0,0.00031143,2]
[349234468,1737058026447,-164.0,0.00031143,2]
[349234469,1737058026469,-164.0,0.00031143,2]
[349234470,1737058026490,-164.0,0.00031143,2]
[349234471,1737058026511,-164.0,0.00031143,2]
[349234472,1737058026531,-164.0,0.00031143,2]
[349234473,1737058026552,-164.0,0.00031143,2]
[349234474,1737058026572,-164.0,0.00031143,2]
[349234475,1737058026594,-164.0,0.00031143,2]
[349234476,1737058026614,-164.0,0.00031143,2]
[349234477,1737058026638,-164.0,0.00031143,2]
[349234478,1737058026658,-164.0,0.00031143,2]
[349234479,1737058026678,-153.0,0.00031143,2]
[349234480,1737058026700,-153.0,0.00031143,2]
[349234481,1737058026720,-153.0,0.00031143,2]
[349234482,1737058026741,-153.0,0.00031143,2]
[349234483,1737058026989,-153.0,0.00031143,2]
[349234484,1737058027016,-153.0,0.00031143,2]
[349234485,1737058027039,-153.0,0.00031143,2]
[349234486,1737058027059,-153.0,0.00031143,2]
[349234487,1737058027080,-153.0,0.00031143,2]
[349234488,1737058027100,-153.48,0.00031243,2]
[349234489,1737058027120,-153.48,0.00031399,2]
[349234490,1737058027142,-17607.40009616,0.00031829,2]
[349234491,1737058027192,-1708.01890783,0.00031829,2]
[349234492,1737058032087,-236.15774304,0.00031829,2]
[349234493,1737058148089,-550.0,0.00027,2]
[349234494,1737058148110,-305.16,0.00030908,2]
[349234495,1737058148130,-293.03,0.00030981,2]
[349234496,1737058148305,-4.01331423,0.00031,11]
[349234499,1737058151102,-1073.91633842,0.00031,11]
[349234515,1737058231979,-422.07034735,0.00031,11]
[349234516,1737058231989,-114.35598405,0.000311,11]
[349234517,1737058232032,-2885.64401595,0.000311,11]
[349234518,1737058232044,-200.0,0.00031142,2]
[349234519,1737058232053,-153.0,0.00031143,2]
[349234520,1737058232062,-153.0,0.00031143,2]
[349234521,1737058232071,-153.0,0.00031143,2]
[349234522,1737058232081,-153.0,0.00031143,2]
[349234523,1737058232090,-153.0,0.00031143,2]
[349234524,1737058232100,-153.0,0.00031143,2]
[349234525,1737058232109,-153.0,0.00031143,2]
[349234526,1737058232119,-153.0,0.00031143,2]
[349234527,1737058232129,-153.0,0.00031143,2]
[349234528,1737058232138,-153.0,0.00031143,2]
[349234529,1737058232148,-153.0,0.00031143,2]
[349234530,1737058232158,-153.0,0.00031143,2]
[349234531,1737058232167,-153.0,0.00031143,2]
[349234532,1737058232177,-153.0,0.00031143,2]
[349234533,1737058232186,-153.0,0.00031143,2]
[349234534,1737058232196,-153.0,0.00031143,2]
[349234535,1737058232205,-153.0,0.00031143,2]
[349234536,1737058232215,-153.0,0.00031143,2]
[349234537,1737058232224,-153.0,0.00031143,2]
[349234538,1737058232234,-153.0,0.00031143,2]
[349234539,1737058232244,-153.0,0.00031143,2]
[349234540,1737058232253,-153.0,0.00031143,2]
[349234541,1737058232267,-153.0,0.00031143,2]
[349234542,1737058232277,-153.0,0.00031143,2]
[349234543,1737058232287,-153.0,0.00031143,2]
[349234544,1737058232297,-153.0,0.00031143,2]
[349234545,1737058232307,-153.0,0.00031143,2]
[349234546,1737058232317,-153.0,0.00031143,2]
[349234547,1737058232326,-153.0,0.00031143,2]
[349234548,1737058232335,-153.0,0.00031143,2]
[349234549,1737058232345,-153.0,0.00031143,2]
[349234550,1737058232354,-153.0,0.00031143,2]
[349234551,1737058232363,-153.0,0.00031143,2]
[349234552,1737058232373,-153.0,0.00031143,2]
[349234553,1737058232383,-153.0,0.00031143,2]
[349234554,1737058232392,-153.0,0.00031143,2]
[349234555,1737058232402,-153.0,0.00031143,2]
[349234556,1737058232413,-153.0,0.00031143,2]
[349234557,1737058232423,-153.0,0.00031143,2]
[349234558,1737058232432,-153.0,0.00031143,2]
[349234559,1737058232442,-153.0,0.00031143,2]
[349234560,1737058232452,-153.0,0.00031143,2]
[349234561,1737058232462,-153.0,0.00031143,2]
[349234562,1737058232476,-153.0,0.00031143,2]
[349234563,1737058232485,-153.0,0.00031143,2]
[349234564,1737058232497,-153.0,0.00031143,2]
[349234565,1737058232507,-153.0,0.00031143,2]
[349234566,1737058232519,-153.0,0.00031143,2]
[349234567,1737058232528,-153.0,0.00031143,2]
[349234568,1737058232538,-153.0,0.00031143,2]
[349234569,1737058232547,-153.0,0.00031143,2]
[349234570,1737058232556,-153.0,0.00031143,2]
[349234571,1737058232566,-153.0,0.00031143,2]
[349234573,1737058232576,-153.0,0.00031143,2]
[349234576,1737058232729,-153.0,0.00031143,2]
[349234577,1737058232740,-153.0,0.00031143,2]
[349234578,1737058232749,-153.0,0.00031143,2]
[349234579,1737058232759,-153.0,0.00031143,2]
[349234580,1737058232772,-153.0,0.00031143,2]
[349234581,1737058232782,-153.0,0.00031143,2]
[349234582,1737058232792,-153.0,0.00031143,2]
[349234583,1737058232802,-153.0,0.00031143,2]
[349234584,1737058232811,-153.0,0.00031143,2]
[349234585,1737058232821,-153.0,0.00031143,2]
[349234586,1737058232831,-153.0,0.00031143,2]
[349234587,1737058232840,-4500.0,0.000312,11]
[349234588,1737058232850,-6000.0,0.000313,11]
[349234589,1737058232859,-7500.0,0.000314,11]
[349234590,1737058232869,-250.0,0.00031464,2]
[349234591,1737058232879,-1500.0,0.000315,11]
[349234592,1737058232888,-6938.93,0.000315,2]
[349234593,1737058232897,-299.99,0.000315,12]
[349234594,1737058232907,-957.22,0.000315,2]
[349234595,1737058232916,-150.99,0.000315,2]
[349234596,1737058232926,-1500.0,0.000316,11]
[349234597,1737058232935,-150.99,0.000316,2]
[349234598,1737058232945,-5026.78,0.000316,2]
[349234599,1737058232955,-3862.78,0.000316,2]
[349234600,1737058232964,-1500.0,0.000317,11]
[349234601,1737058232974,-1500.0,0.000318,11]
[349234602,1737058232983,-4348.42325297,0.00031829,2]
[349234603,1737058232993,-910.89,0.00031829,120]
[349234604,1737058233002,-250.0,0.00031829,2]
[349234605,1737058233016,-500.0,0.00031831,2]
[349234606,1737058233026,-1890.0,0.000319,11]
[349234607,1737058233035,-219.07033116,0.00032046,4]
[349234608,1737058233045,-450.86307453,0.00032046,2]
[349234609,1737058233055,-806.42724568,0.00032046,2]
[349234610,1737058233065,-450.86307452,0.00032046,2]
[349234611,1737058233075,-806.42724559,0.00032046,2]
[349234612,1737058233085,-450.86307452,0.00032046,2]
[349234613,1737058233094,-806.42724559,0.00032046,2]
[349234614,1737058233104,-450.86307452,0.00032046,2]
[349234615,1737058233114,-806.42724559,0.00032046,2]
[349234616,1737058233124,-450.86307452,0.00032046,2]
[349234617,1737058233134,-806.42724559,0.00032046,2]
[349234618,1737058233144,-450.86307452,0.00032047,2]
[349234619,1737058233154,-806.42724559,0.00032047,2]
[349234620,1737058233164,-450.86307452,0.00032047,2]
[349234621,1737058233174,-806.42724559,0.00032047,2]
[349234622,1737058233184,-450.86307452,0.00032047,2]
[349234623,1737058233194,-806.42724559,0.00032047,2]
[349234624,1737058233204,-450.86307452,0.00032047,2]
[349234625,1737058233213,-806.42724559,0.00032047,2]
[349234626,1737058233223,-450.86307452,0.00032047,2]
[349234627,1737058233233,-806.42724559,0.00032047,2]
[349234628,1737058233244,-11163.38002046,0.00032047,2]
[349234629,1737058233254,-2091.36266026,0.00032047,2]
[349234630,1737058233267,-272.16888926,0.00032047,2]
[349234631,1737058233277,-14138.72807702,0.00032047,2]
[349234632,1737058233288,-1274.5058648,0.00032145,15]
[349234633,1737058233298,-564909.94896015,0.00032146,4]
[349234634,1737058233308,-264278.94526244,0.00032146,30]
[349234635,1737058233321,-1228.47,0.00032146,30]
[349234636,1737058233333,-46309.53846456,0.00032146,30]
[349234637,1737058233370,-334.78694722,0.00032146,30]
[349234638,1737058233382,-358.35358244,0.00032146,30]
[349234639,1737058233402,-3986.50000671,0.00032146,30]
[349234650,1737058237858,-56758.0600531,0.00032146,30]
[349234651,1737058238004,-50100.00000003,0.00032146,30]
[349234652,1737058238058,-1507.9353124,0.00032146,30]
[349234653,1737058238070,-385.87238127,0.00032146,30]
[349234654,1737058238081,-561.18935367,0.00032146,30]
[349234655,1737058238132,-81.7482338,0.00032146,30]
[349234656,1737058238155,-500.0,0.00032146,30]
[349234668,1737058240108,-329.28,0.00032146,30]
[349234669,1737058240212,-704.71418775,0.00032146,30]
[349234670,1737058240423,-985.07995557,0.00032146,30]
[349234781,1737058243103,-676763.09142872,0.00032146,30]
[349234782,1737058243115,-43395.7157572,0.00032146,30]
[349234783,1737058243157,-410.58977804,0.00032146,30]
[349234784,1737058243169,-1868.26908,0.00032146,30]
[349234785,1737058243211,-10016.62314845,0.00032146,30]
[349234786,1737058243223,-535.899978,0.00032146,30]
[349234787,1737058243330,-18297.30035263,0.00032146,30]
[349234801,1737058246166,-153.0,0.00031143,2]
[349234802,1737058246175,-153.0,0.00031143,2]
[349234803,1737058246184,-153.0,0.00031143,2]
[349234804,1737058246193,-153.0,0.00031143,2]
[349234805,1737058246203,-153.0,0.00031143,2]
[349234806,1737058246212,-19349.34109586,0.00032146,30]
[349234807,1737058246223,-836.9383152,0.00032146,30]
[349234808,1737058246234,-611.74297416,0.00032146,30]
[349234809,1737058246255,-153.0,0.00031143,2]
[349234810,1737058246265,-23577.83029582,0.00032146,30]
[349234811,1737058246279,-6644.66404,0.00032146,30]
[349234817,1737058246492,-51141.36692037,0.00032146,30]
[349234818,1737058246513,-761.99751895,0.00032146,30]
[349234819,1737058246544,-153.0,0.00031143,2]
[349234820,1737058246554,-6535.69228001,0.00032146,30]
[349234822,1737058249508,165.43,0.00010137,2]
[349234828,1737059237141,-157.78,0.00010137,2]
[349234829,1737059237164,-528.40593458,0.00011366,2]
[349234830,1737059237185,-77.36218474,0.000119,2]
[349234832,1737059253109,-992.84497457,0.000119,2]
[349234833,1737059253131,-300.0,0.00011999,2]
[349234834,1737059253154,-150.0,0.00011999,2]
[349234835,1737059253178,-10232.06051755,0.00012,2]
[349234845,1737059346087,-1085.11703637,0.00010999,2]
[349234846,1737059346108,-9616.48814821,0.00011,2]
[349234857,1737059432194,-150.0,0.00010999,2]
[349234859,1737059432204,-286.0,0.00011,2]
[349234861,1737059432303,-1990.16889798,0.00011,2]
[349234862,1737059432314,-398.34279933,0.00011,2]
[349234863,1737059432325,-3293.73828791,0.00011,2]
[349234864,1737059432373,-102569.25298695,0.00011,2]
[349234865,1737059432382,-271.01753723,0.00011,2]
[349234866,1737059432392,-186.72349898,0.000119,2]
[349234867,1737059432403,-89266.67379375,0.00012,2]
[349234868,1737059432413,-758.83098437,0.00012,2]
[349234869,1737059432424,-995.580881,0.000123,2]
[349234870,1737059432434,-1660.283625,0.000129,7]
[349234871,1737059432443,-573.32806682,0.00013,2]
[349234872,1737059432453,-867.0,0.000191,2]
[349234873,1737059432463,-157.78,0.00019895,2]
[349234874,1737059432472,-1408.65875739,0.0002,2]
[349234875,1737059432482,-2003.20653631,0.00023483,30]
[349234876,1737059432492,-150.99,0.00024174,2]
[349234877,1737059432504,-150.99,0.00024174,2]
[349234878,1737059432513,-163.52,0.00025031,2]
[349234879,1737059432523,-1000.0,0.00029452,2]
[349234880,1737059432535,-157.78,0.00029652,2]
[349234881,1737059432545,-179.98,0.00029738,2]
[349234882,1737059432556,-150.0,0.00029809,2]
[349234883,1737059432567,-1221.03,0.00029911,2]
[349234884,1737059432577,-536.24,0.00029918,2]
[349234885,1737059432588,-150.0,0.000304,2]
[349234886,1737059432599,-429.9384254,0.00030436,2]
[349234887,1737059432609,-429.9384254,0.00030779,2]
[349234888,1737059432619,-293.03,0.00030952,2]
[349234889,1737059432630,-32012.523606,0.00031,6]
[349234890,1737059432640,-429.9384254,0.00031156,2]
[349234891,1737059432650,-429.9384254,0.00031246,2]
[349234892,1737059432660,-500.0,0.00031385,2]
[349234893,1737059432670,-250.0,0.00031547,2]
[349234894,1737059432680,-503.05,0.00031605,120]
[349234895,1737059432689,-250.0,0.00031605,2]
[349234896,1737059432699,-429.9384254,0.00031613,2]
[349234897,1737059432708,-1310.81,0.00031829,120]
[349234898,1737059432718,-6149.45087271,0.0003183,2]
[349234899,1737059432727,-429.9384257,0.00031906,2]
[349234900,1737059432737,-1049.01,0.00032,4]
[349234901,1737059432746,-150.011705,0.00032018,120]
[349234902,1737059432756,-150.011705,0.00032028,120]
[349234903,1737059432766,-150.011705,0.00032038,120]
[349234904,1737059432776,-219.07033116,0.00032046,4]
[349234905,1737059432786,-3893.506677,0.00032046,2]
[349234906,1737059432796,-372.72910498,0.00032046,2]
[349234907,1737059432806,-35681.36840342,0.00032046,2]
[349234908,1737059432816,-154.83661892,0.00032047,3]
[349234909,1737059432825,-3000.0,0.00032047,2]
[349234910,1737059432835,-150.011705,0.00032048,120]
[349234911,1737059432844,-150.011705,0.00032058,120]
[349234912,1737059432854,-150.011705,0.00032068,120]
[349234913,1737059432863,-150.011705,0.00032078,120]
[349234914,1737059432873,-150.011705,0.00032088,120]
[349234915,1737059432882,-150.011705,0.00032098,120]
[349234916,1737059432896,-150.011705,0.00032108,120]
[349234917,1737059432906,-150.011705,0.00032118,120]